bitfinex/quotes_BTCUSD_20241025
["timestamp","ask_amount","ask_price","bid_price","bid_amount"]
[1729879374089,0.7340817,66472.0,66466.0,1.00310903]
[1729879374090,0.17983023,66467.0,66466.0,1.00310903]
[1729879374304,0.33033404,66467.0,66466.0,0.17654714]
[1729879374583,0.16486223,66453.0,66452.0,0.22490779]
[1729879374792,0.73181687,66453.0,66452.0,0.22490779]
[1729879375015,0.16986623,66451.0,66448.0,0.000851]
[1729879375260,0.33385546,66451.0,66448.0,0.000851]
[1729879375520,0.33115826,66451.0,66448.0,0.000851]
[1729879375985,0.02138023,66449.0,66448.0,0.000851]
[1729879376213,0.32237504,66449.0,66448.0,0.000851]
[1729879376455,0.32237504,66449.0,66433.0,0.22279393]
[1729879376456,0.00451915,66434.0,66433.0,0.22279393]
[1729879376667,0.00451915,66434.0,66430.0,0.00290796]
[1729879376668,0.00951915,66432.0,66430.0,0.00290796]
[1729879377125,0.01438023,66432.0,66430.0,0.00290796]
[1729879378559,0.00951915,66432.0,66430.0,0.00290796]
[1729879378778,0.01438023,66432.0,66430.0,0.00290796]
[1729879379752,0.36569182,66432.0,66430.0,0.00290796]
[1729879379990,0.23934501,66432.0,66430.0,0.00290796]
[1729879380241,0.19106623,66432.0,66430.0,0.00290796]
[1729879380461,0.18032616,66432.0,66430.0,0.00290796]
[1729879380714,0.19606619,66432.0,66430.0,0.00290796]
[1729879380932,0.1960661,66432.0,66430.0,0.00290796]
[1729879381167,0.23930602,66432.0,66430.0,0.00290796]
[1729879381389,0.39983502,66432.0,66430.0,0.00290796]
[1729879381617,0.22754735,66432.0,66430.0,0.00290796]
[1729879381838,0.03570121,66432.0,66430.0,0.00290796]
[1729879382027,0.02712017,66432.0,66430.0,0.00290796]
[1729879382516,0.02712017,66432.0,66413.0,0.22575879]
[1729879382517,0.01938023,66414.0,66413.0,0.000851]
[1729879382757,0.74686157,66414.0,66413.0,0.000851]
[1729879383249,0.0297021,66413.0,66404.0,0.0007]
[1729879383480,0.0297021,66413.0,66364.0,0.151534]
[1729879383481,0.005,66381.0,66380.0,0.0295922]
[1729879383739,0.01359157,66381.0,66380.0,0.0268042]
[1729879384433,0.01300857,66381.0,66380.0,0.0268042]
[1729879384675,0.00451915,66382.0,66380.0,0.0268042]
[1729879384892,0.40542017,66381.0,66380.0,0.0268042]
[1729879385157,0.40542017,66381.0,66375.0,9.1e-05]
[1729879385158,0.03200857,66376.0,66375.0,9.1e-05]
[1729879385419,0.03200857,66376.0,66364.0,0.000851]
[1729879385420,0.58564898,66368.0,66364.0,0.000851]
[1729879385632,0.18268957,66365.0,66364.0,0.000851]
[1729879385909,0.18268957,66365.0,66323.0,0.00072192]
[1729879385910,0.02000857,66334.0,66333.0,0.65301506]
[1729879386137,0.01300857,66334.0,66333.0,0.65301506]
[1729879386358,0.42097398,66334.0,66333.0,0.65301506]
[1729879386588,0.41597398,66334.0,66333.0,0.65301506]
[1729879386835,0.00421134,66334.0,66333.0,0.65301506]
[1729879387079,0.00421134,66336.0,66333.0,0.65301506]
[1729879387310,0.01066284,66353.0,66337.0,0.0796]
[1729879387311,0.00451915,66350.0,66337.0,0.0796]
[1729879387584,0.22490779,66340.0,66337.0,0.0796]
[1729879387831,0.00421134,66340.0,66338.0,1.5]
[1729879388052,0.01073049,66338.0,66337.0,0.0796]
[1729879388281,0.00621134,66334.0,66333.0,0.70301506]
[1729879388555,0.41797398,66334.0,66333.0,0.70301506]
[1729879388773,0.42297398,66334.0,66333.0,0.70301506]
[1729879388992,0.16551238,66334.0,66333.0,0.70301506]
[1729879389241,0.56847779,66334.0,66333.0,0.70014084]
[1729879389491,0.16551238,66334.0,66333.0,0.70014084]
[1729879389729,0.56847779,66334.0,66333.0,0.70014084]
[1729879389977,0.01500857,66334.0,66333.0,0.70014084]
[1729879390918,0.56847779,66334.0,66333.0,0.70014084]
[1729879391142,0.56847779,66334.0,66333.0,0.69597418]
[1729879391371,0.79257757,66334.0,66333.0,0.69597418]
[1729879391588,0.64382557,66334.0,66333.0,0.69597418]
[1729879391810,0.17051238,66334.0,66333.0,0.69597418]
[1729879392029,0.01500857,66334.0,66333.0,0.69679518]
[1729879392288,0.00451915,66334.0,66333.0,0.69679518]
[1729879392507,0.00421134,66336.0,66333.0,0.69679518]
[1729879392508,0.00873049,66336.0,66333.0,0.69679518]
[1729879392721,0.00451915,66334.0,66333.0,0.74679518]
[1729879392934,0.00451915,66336.0,66333.0,0.74679518]
[1729879393149,0.22990779,66354.0,66333.0,0.74679518]
[1729879393150,0.22490779,66334.0,66333.0,0.74679518]
[1729879393399,0.01073049,66334.0,66333.0,0.74679518]
[1729879393631,0.00421134,66335.0,66333.0,0.74679518]
[1729879393842,0.002,66334.0,66333.0,0.74679518]
[1729879394059,0.00421134,66338.0,66333.0,0.74679518]
[1729879394288,0.00451915,66339.0,66334.0,0.00301481]
[1729879394506,0.22490779,66343.0,66334.0,0.15050381]
[1729879394796,0.00421134,66344.0,66334.0,0.15050381]
[1729879395040,0.00451915,66350.0,66338.0,0.00072192]
[1729879395269,0.00421134,66353.0,66340.0,0.1839]
[1729879395270,0.22490779,66347.0,66340.0,0.1839]
[1729879395481,0.22490779,66347.0,66333.0,0.74679518]
[1729879395482,0.00873049,66334.0,66333.0,0.74679518]
[1729879395700,0.01500857,66334.0,66333.0,0.74679518]
[1729879396167,0.01073049,66338.0,66333.0,0.74679518]
[1729879396420,0.22490779,66353.0,66333.0,0.74679518]
[1729879396421,0.002,66340.0,66333.0,0.74679518]
[1729879396632,0.00451915,66349.0,66335.0,0.08052192]
[1729879396853,0.22490779,66345.0,66336.0,0.15050381]
[1729879397100,0.00427808,66350.0,66335.0,0.0798]
[1729879397101,0.00421134,66343.0,66335.0,0.0798]
[1729879397360,0.00421134,66336.0,66335.0,0.0798]
[1729879397595,0.00873049,66336.0,66335.0,0.0798]
[1729879398033,0.00421134,66336.0,66335.0,0.0798]
[1729879398242,0.002,66341.0,66335.0,0.0798]
[1729879398497,0.22490779,66356.0,66336.0,0.15351816]
[1729879398498,0.002,66352.0,66336.0,0.15351816]
[1729879398684,0.00451915,66346.0,66337.0,0.00301449]
[1729879398920,0.002,66348.0,66335.0,0.30542971]
[1729879399168,0.22490779,66356.0,66335.0,0.30542971]
[1729879399169,0.00421134,66355.0,66342.0,0.22490779]
[1729879399404,0.40296541,66369.0,66337.0,0.00072192]
[1729879399405,0.023,66365.0,66349.0,0.19582192]
[1729879399654,0.023,66374.0,66363.0,0.00072192]
[1729879399902,0.00421134,66378.0,66364.0,0.0811]
[1729879399903,0.023,66376.0,66364.0,0.0811]
[1729879400138,0.023,66376.0,66371.0,0.00072192]
[1729879400387,0.023,66378.0,66372.0,0.15423837]
[1729879400627,0.023,66378.0,66374.0,0.00078866]
[1729879400850,0.005,66409.0,66373.0,0.00072192]
[1729879400851,0.00873049,66404.0,66381.0,0.00072192]
[1729879401101,0.002,66400.0,66383.0,0.00151058]
[1729879401354,0.22490779,66412.0,66397.0,0.00072192]
[1729879401355,0.00451915,66408.0,66397.0,0.00072192]
[1729879401594,0.00451915,66408.0,66398.0,0.15050381]
[1729879401832,0.002,66404.0,66398.0,0.15050381]
[1729879402065,0.00451915,66408.0,66399.0,0.22490779]
[1729879402325,0.00421134,66417.0,66400.0,0.15122573]
[1729879402570,0.01333115,66420.0,66399.0,0.22791933]
[1729879402571,0.22490779,66427.0,66410.0,0.00072192]
[1729879402840,0.150517,66438.0,66406.0,0.00048085]
[1729879402841,0.22911913,66435.0,66419.0,0.00072192]
[1729879403084,0.00451915,66438.0,66419.0,0.00072192]
[1729879403085,0.023,66434.0,66428.0,0.00072192]
[1729879403332,0.02721134,66456.0,66437.0,0.00072192]
[1729879403595,0.02721134,66456.0,66444.0,0.40296541]
[1729879403596,0.00451915,66454.0,66444.0,0.40296541]
[1729879403833,0.21163828,66471.0,66448.0,0.1896]
[1729879404083,0.001642,66481.0,66461.0,0.07902192]
[1729879404321,0.22490779,66478.0,66465.0,0.00072192]
[1729879404567,0.001642,66481.0,66472.0,0.22490779]
[1729879404798,0.001642,66481.0,66475.0,0.40296541]
[1729879405284,0.001642,66481.0,66473.0,0.01072192]
[1729879405285,0.001642,66481.0,66471.0,0.00072192]
[1729879405515,0.00592008,66481.0,66477.0,0.22490779]
[1729879405746,0.005,66495.0,66467.0,0.22490779]
[1729879405747,0.005,66500.0,66472.0,0.15050381]
[1729879405992,0.005,66500.0,66464.0,0.1993]
[1729879405993,0.40296541,66486.0,66464.0,0.1993]
[1729879406240,0.150423,66479.0,66478.0,0.22490779]
[1729879406472,0.300815,66486.0,66468.0,0.22490779]
[1729879406729,0.15050381,66485.0,66475.0,0.22490779]
[1729879406954,0.150417,66482.0,66468.0,0.22490779]
[1729879407207,0.15050381,66485.0,66468.0,0.22490779]
[1729879407425,0.15050381,66481.0,66468.0,0.22490779]
[1729879407643,0.15050381,66481.0,66469.0,0.023]
[1729879407879,0.70384741,66472.0,66469.0,0.22490779]
[1729879408107,0.70384741,66472.0,66470.0,0.023]
[1729879408108,0.40296541,66472.0,66470.0,0.023]
[1729879408581,0.30094481,66471.0,66470.0,0.023]
[1729879408822,0.40296541,66472.0,66470.0,0.023]
[1729879408823,0.40296541,66472.0,66471.0,0.22490779]
[1729879409041,0.40296541,66472.0,66470.0,0.023]
[1729879409286,0.40296541,66488.0,66471.0,0.22490779]
[1729879409527,0.40296541,66488.0,66463.0,0.015]
[1729879409528,0.300815,66486.0,66463.0,0.015]
[1729879409742,0.40296541,66488.0,66464.0,0.22490779]
[1729879409743,0.40296541,66466.0,66464.0,0.22490779]
[1729879410007,0.40296541,66479.0,66464.0,0.22490779]
[1729879410234,0.40296541,66479.0,66461.0,0.0783]
[1729879410504,0.40296541,66479.0,66471.0,0.22490779]
[1729879410724,0.40296541,66479.0,66463.0,0.22490779]
[1729879410725,0.150443,66471.0,66463.0,0.22490779]
[1729879410948,0.40296541,66472.0,66463.0,0.22490779]
[1729879411379,0.55342241,66464.0,66463.0,0.023]
[1729879411599,0.55342241,66464.0,66461.0,0.0783]
[1729879411600,0.150461,66462.0,66461.0,0.0783]
[1729879411855,0.150482,66453.0,66452.0,0.22490779]
[1729879412106,0.55344741,66453.0,66452.0,0.22490779]
[1729879412316,0.55344741,66453.0,66445.0,0.30700779]
[1729879412317,0.150498,66446.0,66445.0,0.30700779]
[1729879412594,0.55346341,66446.0,66445.0,0.30700779]
[1729879412810,0.55346922,66446.0,66429.0,0.0821]
[1729879413127,0.005,66454.0,66436.0,0.22490779]
[1729879413128,0.150518,66437.0,66436.0,0.22490779]
[1729879413378,0.150518,66437.0,66416.0,0.005]
[1729879413379,0.150547,66424.0,66423.0,0.22490779]
[1729879413584,0.150547,66424.0,66414.0,0.30610779]
[1729879413585,0.150547,66424.0,66414.0,0.22490779]
[1729879413586,0.150568,66415.0,66414.0,0.22490779]
[1729879413861,0.55353341,66415.0,66414.0,0.22490779]
[1729879414265,0.150591,66405.0,66404.0,0.000822]
[1729879414486,0.40296541,66405.0,66404.0,0.000822]
[1729879416089,0.40296541,66412.0,66404.0,0.15132581]
[1729879416295,0.40296541,66412.0,66405.0,0.15050381]
[1729879416515,0.40296541,66412.0,66404.0,0.005822]
[1729879416516,0.22490779,66408.0,66406.0,0.023]
[1729879416745,0.40296541,66423.0,66404.0,0.000822]
[1729879416983,0.15050381,66423.0,66404.0,0.000822]
[1729879417206,0.005,66427.0,66405.0,0.22490779]
[1729879417458,0.001646,66415.0,66405.0,0.3754116]
[1729879417736,0.301019,66441.0,66405.0,0.3754116]
[1729879417737,0.22490779,66434.0,66412.0,0.22490779]
[1729879417947,0.22490779,66442.0,66421.0,0.22490779]
[1729879418201,0.22490779,66442.0,66411.0,0.40296541]
[1729879418202,0.22490779,66435.0,66423.0,0.005]
[1729879418419,0.22490779,66435.0,66420.0,0.11]
[1729879418420,0.22490779,66433.0,66420.0,0.005]
[1729879418625,0.22490779,66442.0,66421.0,0.22490779]
[1729879418626,0.40296541,66437.0,66421.0,0.22490779]
[1729879418846,0.15050381,66436.0,66421.0,0.22490779]
[1729879419061,0.40296541,66437.0,66428.0,0.22490779]
[1729879419309,0.005,66441.0,66421.0,0.22490779]
[1729879419556,0.005,66441.0,66422.0,0.22490779]
[1729879419557,0.40296541,66437.0,66422.0,0.22490779]
[1729879419767,0.55346922,66437.0,66429.0,0.22490779]
[1729879419989,0.005,66444.0,66422.0,0.22490779]
[1729879419990,0.005,66443.0,66422.0,0.22490779]
[1729879420195,0.40296541,66453.0,66429.0,0.3754116]
[1729879420404,0.22490779,66449.0,66429.0,0.3754116]
[1729879420627,0.40296541,66460.0,66437.0,0.023]
[1729879420870,0.22490779,66452.0,66437.0,0.023]
[1729879421073,0.40296541,66453.0,66441.0,0.023]
[1729879421331,0.40296541,66453.0,66440.0,0.22490779]
[1729879421332,0.40296541,66460.0,66448.0,0.023]
[1729879421576,0.005,66473.0,66448.0,0.023]
[1729879421577,0.40296541,66470.0,66448.0,0.023]
[1729879421829,0.300839,66481.0,66448.0,0.023]
[1729879421830,0.6278732,66484.0,66457.0,0.023]
[1729879422045,0.6278732,66484.0,66461.0,0.023]
[1729879422046,0.22490779,66484.0,66461.0,0.023]
[1729879422262,0.006704,66499.0,66463.0,0.023]
[1729879422263,0.40296541,66489.0,66463.0,0.023]
[1729879422512,0.6278732,66495.0,66470.0,0.023]
[1729879422719,0.001704,66499.0,66469.0,0.22490779]
[1729879422720,0.22490779,66494.0,66472.0,0.023]
[1729879422932,0.22490779,66494.0,66474.0,0.023]
[1729879423180,0.001704,66499.0,66471.0,0.0787]
[1729879423181,0.40296541,66489.0,66476.0,0.023]
[1729879423373,0.40296541,66489.0,66462.0,0.2048]
[1729879423374,0.40296541,66475.0,66457.0,0.0787]
[1729879423638,0.40296541,66475.0,66470.0,0.22490779]
[1729879423639,0.150441,66471.0,66470.0,0.22490779]
[1729879423889,0.150441,66471.0,66463.0,0.22490779]
[1729879423890,0.005,66471.0,66463.0,0.22490779]
[1729879424167,0.005,66471.0,66470.0,0.22490779]
[1729879424400,0.005,66471.0,66464.0,0.023]
[1729879424604,0.01065999,66480.0,66471.0,0.023]
[1729879424864,0.005,66484.0,66461.0,1.0]
[1729879424865,0.40296541,66472.0,66461.0,1.0]
[1729879425079,0.15050381,66471.0,66469.0,0.22490779]
[1729879425310,0.40296541,66465.0,66462.0,0.22490779]
[1729879425776,0.01335146,66464.0,66462.0,0.22490779]
[1729879425984,0.01335146,66464.0,66461.0,1.0]
[1729879426441,0.01335146,66464.0,66462.0,0.22490779]
[1729879426697,0.40796541,66479.0,66463.0,0.023]
[1729879426901,0.01069804,66478.0,66462.0,0.023]
[1729879427116,0.40796541,66479.0,66462.0,0.24790779]
[1729879427340,0.01071339,66478.0,66462.0,0.24790779]
[1729879428031,0.40296541,66479.0,66470.0,0.023]
[1729879428296,0.40296541,66501.0,66473.0,0.1996]
[1729879428495,0.22490779,66491.0,66474.0,0.17350381]
[1729879428724,0.15220781,66499.0,66474.0,0.17350381]
[1729879428725,0.001704,66499.0,66478.0,0.023]
[1729879428950,0.001704,66499.0,66480.0,0.023]
[1729879429171,0.001704,66499.0,66486.0,0.22490779]
[1729879429386,0.001704,66499.0,66487.0,0.023]
[1729879429605,0.001704,66499.0,66489.0,0.023]
[1729879430233,0.001704,66499.0,66489.0,0.17350381]
[1729879430470,0.39542629,66514.0,66496.0,0.023]
[1729879430693,0.39542629,66514.0,66491.0,0.023]
[1729879430694,0.22490779,66513.0,66491.0,0.023]
[1729879430920,0.150346,66513.0,66494.0,0.023]
[1729879431177,0.5459301,66514.0,66502.0,0.1053]
[1729879431390,0.0177257,66519.0,66502.0,0.1053]
[1729879431836,0.40296541,66505.0,66494.0,0.22490779]
[1729879432065,0.40296541,66505.0,66502.0,0.22490779]
[1729879432291,0.15050381,66504.0,66494.0,0.22490779]
[1729879432525,0.15050381,66504.0,66501.0,0.22490779]
[1729879432759,0.15050381,66504.0,66494.0,0.22490779]
[1729879433684,0.40296541,66505.0,66495.0,0.023]
[1729879433911,0.55346922,66505.0,66495.0,0.023]
[1729879434359,0.55346922,66505.0,66494.0,0.22490779]
[1729879434578,0.70383522,66505.0,66495.0,0.023]
[1729879434801,0.55346922,66505.0,66495.0,0.023]
[1729879435019,0.55446922,66505.0,66495.0,0.023]
[1729879435271,0.40296541,66505.0,66501.0,0.22490779]
[1729879435481,0.40296541,66505.0,66495.0,0.023]
[1729879435482,0.42069111,66519.0,66502.0,0.24790779]
[1729879435723,0.001,66505.0,66494.0,0.0020979]
[1729879435940,0.3754116,66518.0,66504.0,0.22490779]
[1729879435941,0.15050381,66518.0,66504.0,0.22490779]
[1729879436169,0.15050381,66518.0,66498.0,0.023]
[1729879436387,0.001,66505.0,66504.0,0.22490779]
[1729879436830,0.001,66505.0,66504.0,0.023]
[1729879437508,0.001,66505.0,66494.0,0.0020979]
[1729879437509,0.15034,66516.0,66505.0,0.023]
[1729879437741,0.002,66493.0,66476.0,0.1]
[1729879437971,0.002,66493.0,66462.0,0.5]
[1729879437972,0.002,66475.0,66404.0,0.07514933]
[1729879438218,0.002,66468.0,66450.0,0.060163]
[1729879438438,0.002,66468.0,66444.0,0.40296541]
[1729879438636,0.002,66469.0,66457.0,0.150472]
[1729879438892,0.005,66485.0,66439.0,0.391]
[1729879438893,0.002,66477.0,66461.0,0.150462]
[1729879439102,0.002,66476.0,66464.0,0.150457]
[1729879439330,0.018436,66501.0,66460.0,0.40296541]
[1729879439331,0.00207,66477.0,66465.0,0.150454]
[1729879439573,7e-05,66477.0,66467.0,0.40296541]
[1729879439824,7e-05,66477.0,66476.0,0.15050381]
[1729879440042,7e-05,66477.0,66476.0,0.32393381]
[1729879440273,7e-05,66477.0,66476.0,0.17350381]
[1729879440492,0.01343944,66492.0,66476.0,0.17350381]
[1729879440493,0.002,66489.0,66477.0,0.023]
[1729879440734,0.22490779,66493.0,66477.0,0.023]
[1729879440735,0.22490779,66486.0,66479.0,0.023]
[1729879440959,0.22490779,66486.0,66478.0,0.0777]
[1729879440960,0.002,66482.0,66478.0,0.0777]
[1729879441208,0.002,66482.0,66463.0,0.1802]
[1729879441209,0.002,66466.0,66465.0,0.0777]
[1729879441436,0.002,66466.0,66465.0,0.22820381]
[1729879441883,0.002,66467.0,66465.0,0.21429082]
[1729879442115,0.002,66467.0,66466.0,0.15050381]
[1729879442382,0.23834599,66485.0,66467.0,0.1]
[1729879442606,0.22490779,66485.0,66484.0,0.173412]
[1729879442819,0.22490779,66493.0,66492.0,0.023]
[1729879443065,0.005,66514.0,66492.0,0.023]
[1729879443066,0.22490779,66500.0,66492.0,0.02600713]
[1729879443337,0.22490779,66500.0,66492.0,0.023]
[1729879443552,0.003642,66505.0,66488.0,0.1]
[1729879443553,0.002,66496.0,66489.0,0.023]
[1729879443823,0.001642,66505.0,66498.0,0.123]
[1729879444041,0.001642,66505.0,66504.0,0.023]
[1729879444268,0.001642,66505.0,66504.0,0.173366]
[1729879444934,0.001642,66505.0,66504.0,0.254666]
[1729879445208,0.001642,66505.0,66504.0,0.40516981]
[1729879445429,0.001642,66505.0,66504.0,0.25480381]
[1729879445945,0.001648,66524.0,66505.0,0.123]
[1729879446160,0.22490779,66517.0,66513.0,0.123]
[1729879446422,0.22855579,66524.0,66512.0,0.150346]
[1729879446423,0.001648,66524.0,66518.0,0.1915]
[1729879446660,0.001648,66524.0,66523.0,0.273323]
[1729879447147,0.001648,66524.0,66523.0,0.123]
[1729879447348,0.001648,66524.0,66523.0,0.27350381]
[1729879447812,0.002648,66524.0,66523.0,0.27350381]
[1729879448061,0.001648,66524.0,66523.0,0.27350381]
[1729879448517,0.004648,66524.0,66518.0,0.0813]
[1729879448748,0.002,66507.0,66506.0,0.0825]
[1729879449000,0.002,66507.0,66506.0,0.23300381]
[1729879449880,0.005,66520.0,66506.0,0.23300381]
[1729879449881,0.002,66510.0,66506.0,0.23300381]
[1729879450096,0.002,66510.0,66507.0,0.15050381]
[1729879450367,0.002,66508.0,66507.0,0.15050381]
[1729879450604,0.002,66517.0,66507.0,0.15050381]
[1729879450863,0.22655579,66524.0,66515.0,0.15050381]
[1729879450864,0.003648,66524.0,66515.0,0.15050381]
[1729879451075,0.22490779,66516.0,66515.0,0.15050381]
[1729879451299,0.002,66522.0,66516.0,0.023]
[1729879451509,0.002,66522.0,66490.0,0.5]
[1729879451510,0.002,66507.0,66506.0,0.023]
[1729879451722,0.002,66507.0,66506.0,0.17350381]
[1729879452424,0.002,66514.0,66506.0,0.17350381]
[1729879452639,0.005,66520.0,66497.0,0.00300675]
[1729879452640,0.002,66520.0,66513.0,0.023]
[1729879452869,0.001648,66524.0,66508.0,0.300711]
[1729879452870,0.001648,66524.0,66517.0,0.123]
[1729879453079,0.001648,66524.0,66523.0,0.023]
[1729879453319,0.001648,66524.0,66523.0,0.27350381]
[1729879453567,0.001648,66524.0,66523.0,0.17350381]
[1729879453568,0.003648,66524.0,66523.0,0.17350381]
[1729879453815,0.003648,66524.0,66493.0,0.391]
[1729879453816,0.002,66512.0,66496.0,0.2616]
[1729879454068,0.002,66512.0,66511.0,0.22490779]
[1729879454310,0.001648,66524.0,66497.0,0.15050381]
[1729879454311,0.002,66498.0,66497.0,0.15050381]
[1729879454548,0.005,66513.0,66497.0,0.15050381]
[1729879454549,0.002,66503.0,66497.0,0.15050381]
[1729879455186,0.002,66503.0,66498.0,0.22490779]
[1729879455448,0.002,66503.0,66487.0,0.04351819]
[1729879455705,0.002,66503.0,66468.0,0.300894]
[1729879455706,0.01,66493.0,66488.0,0.22490779]
[1729879455904,0.01,66493.0,66469.0,0.0801]
[1729879455905,0.005,66492.0,66469.0,0.0801]
[1729879456175,0.002,66492.0,66477.0,0.03682768]
[1729879456429,0.002,66492.0,66471.0,0.300883]
[1729879456657,0.02427854,66511.0,66471.0,0.300883]
[1729879456658,0.005,66490.0,66471.0,0.04125536]
[1729879456874,0.002,66491.0,66470.0,0.300887]
[1729879457118,0.01078099,66510.0,66469.0,0.0801]
[1729879457119,0.002,66488.0,66477.0,0.150427]
[1729879457553,0.002,66489.0,66469.0,0.0801]
[1729879457804,0.005,66503.0,66469.0,0.0801]
[1729879457805,0.002,66492.0,66469.0,0.0801]
[1729879458074,0.02430793,66514.0,66469.0,0.0801]
[1729879458075,0.01081038,66514.0,66500.0,0.1]
[1729879458311,0.01081038,66514.0,66495.0,0.183]
[1729879458312,0.01081038,66514.0,66486.0,0.123]
[1729879458575,0.22990779,66515.0,66481.0,0.5]
[1729879458576,0.002,66499.0,66495.0,0.150385]
[1729879458790,0.002,66506.0,66497.0,0.023]
[1729879459039,0.002,66506.0,66495.0,0.023]
[1729879459250,0.002,66514.0,66503.0,0.300737]
[1729879459479,0.006648,66524.0,66506.0,0.023]
[1729879459480,0.002,66516.0,66506.0,0.023]
[1729879459693,0.001648,66524.0,66510.0,0.023]
[1729879459694,0.002,66517.0,66510.0,0.023]
[1729879459939,0.002,66517.0,66513.0,0.023]
[1729879460170,0.001648,66524.0,66517.0,0.023]
[1729879460418,0.001648,66524.0,66523.0,0.023]
[1729879460621,0.003648,66524.0,66523.0,0.023]
[1729879460848,0.001648,66524.0,66523.0,0.173323]
[1729879461525,0.001648,66524.0,66523.0,0.32382681]
[1729879461735,0.001648,66524.0,66523.0,0.17350381]
[1729879462150,0.003648,66524.0,66523.0,0.17350381]
[1729879462578,0.003648,66524.0,66523.0,0.023]
[1729879463241,0.003648,66524.0,66519.0,0.023]
[1729879463463,0.002,66521.0,66515.0,0.023]
[1729879463696,0.001648,66524.0,66523.0,0.023]
[1729879463919,0.001648,66524.0,66523.0,0.173323]
[1729879464397,0.001648,66524.0,66516.0,0.22490779]
[1729879464398,0.001648,66524.0,66516.0,0.150339]
[1729879464604,0.003648,66524.0,66519.0,0.023]
[1729879464815,0.001648,66524.0,66523.0,0.173323]
[1729879465018,0.001648,66524.0,66523.0,0.32382681]
[1729879467573,0.001648,66532.0,66525.0,0.323638]
[1729879467782,0.001648,66532.0,66531.0,0.42380881]
[1729879469095,0.001648,66532.0,66531.0,0.62030881]
[1729879469300,0.001648,66532.0,66531.0,0.63319454]
[1729879469528,0.001706,66546.0,66531.0,0.63319454]
[1729879469529,0.001706,66546.0,66545.0,0.273274]
[1729879469735,0.001706,66546.0,66545.0,0.42377781]
[1729879470538,0.001648,66560.0,66552.0,0.173258]
[1729879470744,0.001648,66560.0,66552.0,0.42676637]
[1729879470912,0.001648,66560.0,66552.0,0.42376181]
[1729879471720,0.001648,66560.0,66559.0,0.273242]
[1729879471949,0.001704,66566.0,66565.0,0.273229]
[1729879472179,0.001704,66566.0,66565.0,0.42373281]
[1729879472408,0.001704,66566.0,66565.0,0.30073281]
[1729879472642,0.001704,66566.0,66565.0,0.40073281]
[1729879473575,0.001704,66566.0,66565.0,0.90073281]
[1729879474043,0.001704,66566.0,66565.0,0.93605431]
[1729879474270,0.001704,66566.0,66565.0,0.42373281]
[1729879476069,0.001704,66572.0,66571.0,0.527115]
[1729879476297,0.001704,66572.0,66571.0,0.67761881]
[1729879477695,0.001704,66572.0,66571.0,0.25050381]
[1729879477920,0.001704,66572.0,66571.0,0.15050381]
[1729879478151,0.003704,66572.0,66571.0,0.30071881]
[1729879478384,0.001704,66572.0,66571.0,0.30071881]
[1729879478596,0.001704,66572.0,66571.0,0.30372256]
[1729879478804,0.001704,66572.0,66571.0,0.15050381]
[1729879479050,0.001704,66572.0,66571.0,0.30372275]
[1729879479285,0.001704,66572.0,66571.0,0.30071881]
[1729879479922,0.001704,66572.0,66571.0,0.32371881]
[1729879480380,0.001704,66572.0,66571.0,0.42371881]
[1729879481273,0.001704,66572.0,66571.0,0.15050381]
[1729879481478,0.005,66570.0,66545.0,0.0801]
[1729879481747,0.003704,66572.0,66568.0,0.150221]
[1729879481960,0.005,66571.0,66569.0,0.15050381]
[1729879482170,0.008704,66572.0,66569.0,0.45094381]
[1729879482388,0.008704,66572.0,66569.0,0.30072281]
[1729879482599,0.008704,66572.0,66571.0,0.150215]
[1729879482838,0.008704,66572.0,66565.0,0.300455]
[1729879482839,0.002,66569.0,66565.0,0.300455]
[1729879483069,0.006704,66572.0,66569.0,0.150218]
[1729879483070,0.002,66570.0,66569.0,0.150218]
[1729879483284,0.002,66563.0,66562.0,0.450705]
[1729879483492,0.002,66567.0,66563.0,0.300467]
[1729879483698,0.005,66571.0,66565.0,0.300458]
[1729879483902,0.002,66569.0,66568.0,0.150222]
[1729879484590,0.003704,66572.0,66571.0,0.150215]
[1729879485025,0.001704,66572.0,66571.0,0.30071881]
[1729879485231,0.001704,66572.0,66571.0,0.32371881]
[1729879485655,0.0051,66582.0,66577.0,0.1]
[1729879485656,0.0001,66582.0,66577.0,0.1]
[1729879485894,0.0001,66582.0,66581.0,0.173192]
[1729879486103,0.0001,66582.0,66581.0,0.32369581]
[1729879486558,0.001704,66584.0,66583.0,0.188088]
[1729879486807,0.001704,66584.0,66583.0,0.33859181]
[1729879487049,0.001704,66584.0,66583.0,0.165088]
[1729879487262,0.001704,66584.0,66583.0,0.44159483]
[1729879487485,0.001704,66584.0,66583.0,0.43859181]
[1729879488452,0.001704,66584.0,66583.0,0.0149]
[1729879488453,0.006704,66584.0,66583.0,0.0149]
[1729879488674,0.001704,66584.0,66583.0,0.165088]
[1729879489347,0.001704,66586.0,66585.0,0.150183]
[1729879489563,0.003704,66586.0,66585.0,0.150183]
[1729879490506,0.002,66584.0,66583.0,0.165088]
[1729879490714,0.013704,66584.0,66583.0,0.0149]
[1729879490933,0.001702,66591.0,66583.0,0.16540381]
[1729879491141,0.001704,66590.0,66586.0,0.150181]
[1729879491350,0.001704,66590.0,66586.0,0.30068481]
[1729879491559,0.002,66590.0,66586.0,0.30068481]
[1729879491773,0.002,66590.0,66586.0,0.30368809]
[1729879491996,0.001702,66591.0,66586.0,0.32368481]
[1729879492202,0.002,66590.0,66586.0,0.32368481]
[1729879492841,0.003702,66591.0,66586.0,0.32368481]
[1729879493489,0.002,66589.0,66586.0,0.32368481]
[1729879493710,0.0197257,66587.0,66586.0,0.32368481]
[1729879494223,0.00110868,66587.0,66586.0,0.42368481]
[1729879494466,0.005,66601.0,66586.0,0.42368481]
[1729879494467,0.22490779,66618.0,66587.0,0.123]
[1729879494691,0.22490779,66618.0,66614.0,0.150118]
[1729879494905,0.22490779,66618.0,66612.0,0.300245]
[1729879494906,0.005,66613.0,66612.0,0.150121]
[1729879495135,0.080302,66631.0,66613.0,0.15012]